fUSD/lending_fUSD_20240629
["ID","MTS","AMOUNT","RATE_DAILY","PERIOD"]
[330675534,1719702649903,-567.0,0.00013808,3]
[330675535,1719702649913,-500.0,0.00013808,3]
[330675536,1719702649923,-518.28,0.00013808,3]
[330675537,1719702649933,-500.0,0.00013808,3]
[330675538,1719702649943,-871.97,0.00013808,3]
[330675539,1719702649953,-809.32,0.00013808,3]
[330675540,1719702649962,-2067.38,0.00013808,3]
[330675541,1719702649972,-500.0,0.00013808,3]
[330675542,1719702649982,-500.0,0.00013808,3]
[330675543,1719702649991,-718.61,0.00013808,3]
[330675544,1719702650001,-500.0,0.00013808,3]
[330675545,1719702650011,-500.0,0.00013808,3]
[330675546,1719702650020,-1368.47,0.00013808,3]
[330675547,1719702650030,-500.0,0.00013808,3]
[330675548,1719702650040,-500.0,0.00013808,3]
[330675549,1719702650050,-500.0,0.00013808,3]
[330675550,1719702650060,-500.0,0.00013808,3]
[330675551,1719702650070,-500.0,0.00013808,3]
[330675552,1719702650080,-623.23,0.00013808,3]
[330675553,1719702650089,-500.0,0.00013808,3]
[330675554,1719702650100,-500.0,0.00013808,3]
[330675555,1719702650110,-500.0,0.00013808,3]
[330675556,1719702650120,-500.0,0.00013808,3]
[330675557,1719702650129,-500.0,0.00013808,3]
[330675558,1719702650139,-500.0,0.00013808,3]
[330675559,1719702650149,-500.0,0.00013808,3]
[330675560,1719702650159,-882.19,0.00013808,3]
[330675561,1719702650170,-500.0,0.00013808,3]
[330675562,1719702650179,-591.78,0.00013808,3]
[330675563,1719702650189,-500.0,0.00013808,3]
[330675564,1719702650199,-500.0,0.00013808,3]
[330675565,1719702650208,-531.83,0.00013808,3]
[330675566,1719702650218,-742.61,0.00013808,3]
[330675567,1719702650228,-1585.47,0.00013808,3]
[330675568,1719702650237,-500.0,0.00013808,3]
[330675569,1719702650247,-822.01,0.00013808,3]
[330675570,1719702650256,-500.0,0.00013808,3]
[330675571,1719702650268,-1911.79,0.00013808,3]
[330675572,1719702650279,-500.0,0.00013808,3]
[330675573,1719702650289,-500.0,0.00013808,3]
[330675574,1719702650299,-500.0,0.00013808,3]
[330675575,1719702650310,-589.83,0.00013808,3]
[330675576,1719702650319,-4166.33,0.00013808,3]
[330675577,1719702650329,-500.0,0.00013808,3]
[330675578,1719702650338,-787.58,0.00013808,3]
[330675579,1719702650350,-837.28,0.00013808,3]
[330675580,1719702650437,-500.0,0.00013808,3]
[330675581,1719702650446,-705.53,0.00013808,3]
[330675582,1719702650455,-1293.27,0.00013808,3]
[330675583,1719702650464,-633.52,0.00013808,3]
[330675584,1719702650474,-500.0,0.00013808,3]
[330675585,1719702650483,-500.0,0.00013808,3]
[330675586,1719702650492,-500.0,0.00013808,3]
[330675587,1719702650501,-500.0,0.00013808,3]
[330675588,1719702650510,-500.0,0.00013808,3]
[330675589,1719702650519,-500.0,0.00013808,3]
[330675590,1719702650528,-817.63,0.00013808,3]
[330675591,1719702650537,-702.27,0.00013808,3]
[330675592,1719702650546,-500.0,0.00013808,3]
[330675593,1719702650555,-500.0,0.00013808,3]
[330675594,1719702650564,-500.0,0.00013808,3]
[330675595,1719702650574,-629.19,0.00013808,3]
[330675596,1719702650583,-500.0,0.00013808,3]
[330675597,1719702650592,-500.0,0.00013808,3]
[330675598,1719702650601,-755.42,0.00013808,3]
[330675599,1719702650611,-572.96,0.00013808,3]
[330675600,1719702650620,-802.9,0.00013808,3]
[330675601,1719702650629,-817.91,0.00013808,3]
[330675602,1719702650638,-500.0,0.00013808,3]
[330675603,1719702650647,-500.0,0.00013808,3]
[330675604,1719702650656,-1688.66,0.00013808,3]
[330675605,1719702650666,-500.0,0.00013808,3]
[330675606,1719702650675,-500.0,0.00013808,3]
[330675607,1719702650684,-612.48,0.00013808,3]
[330675608,1719702650693,-720.42,0.00013808,3]
[330675609,1719702650703,-500.0,0.00013808,3]
[330675610,1719702650712,-627.07,0.00013808,3]
[330675611,1719702650722,-1888.75,0.00013808,3]
[330675612,1719702650731,-500.0,0.00013808,3]
[330675613,1719702650740,-664.05,0.00013808,3]
[330675614,1719702650750,-1221.71,0.00013808,3]
[330675615,1719702650760,-591.93,0.00013808,3]
[330675616,1719702650769,-536.84,0.00013808,3]
[330675617,1719702650779,-862.47,0.00013808,3]
[330675618,1719702650789,-1796.39,0.00013808,3]
[330675619,1719702650798,-655.37,0.00013808,3]
[330675620,1719702650808,-1141.56,0.00013808,3]
[330675621,1719702650817,-652.55,0.00013808,3]
[330675622,1719702650828,-500.0,0.00013808,3]
[330675623,1719702650837,-500.0,0.00013808,3]
[330675624,1719702650846,-536.19388919,0.00013808,3]
[330675625,1719702650856,-500.0,0.00013808,3]
[330675626,1719702650866,-607.14,0.00013808,3]
[330675627,1719702650876,-579.14,0.00013808,3]
[330675628,1719702650885,-946.71,0.00013808,3]
[330675629,1719702650894,-500.0,0.00013808,3]
[330675630,1719702650904,-865.34,0.00013808,3]
[330675631,1719702650914,-500.0,0.00013808,3]
[330675632,1719702650924,-500.0,0.00013808,3]
[330675633,1719702650933,-1058.73,0.00013808,3]
[330675634,1719702650942,-500.0,0.00013808,3]
[330675635,1719702650952,-500.0,0.00013808,3]
[330675636,1719702650961,-544.6,0.00013808,3]
[330675637,1719702650971,-1037.96,0.00013808,3]
[330675638,1719702650980,-1324.61,0.00013808,3]
[330675639,1719702650989,-500.0,0.00013808,3]
[330675640,1719702650999,-500.0,0.00013808,3]
[330675641,1719702651008,-500.0,0.00013808,3]
[330675642,1719702651017,-500.0,0.00013808,3]
[330675643,1719702651026,-2610.56,0.00013808,3]
[330675644,1719702651036,-862.79,0.00013808,3]
[330675645,1719702651045,-500.0,0.00013808,3]
[330675646,1719702651054,-500.0,0.00013808,3]
[330675647,1719702651064,-500.0,0.00013808,3]
[330675648,1719702651073,-899.23,0.00013808,3]
[330675649,1719702651082,-500.0,0.00013808,3]
[330675650,1719702651091,-647.72,0.00013808,3]
[330675651,1719702651100,-1512.84,0.00013808,3]
[330675652,1719702651109,-500.0,0.00013808,3]
[330675653,1719702651118,-500.0,0.00013808,3]
[330675654,1719702651128,-500.0,0.00013808,3]
[330675655,1719702651137,-500.0,0.00013808,3]
[330675656,1719702651146,-1515.14,0.00013808,3]
[330675657,1719702651155,-500.0,0.00013808,3]
[330675658,1719702651164,-500.0,0.00013808,3]
[330675659,1719702651174,-495.65646645,0.00013808,3]
[330675660,1719702651184,-500.0,0.00013808,3]
[330675661,1719702651193,-500.0,0.00013808,3]
[330675662,1719702651202,-1245.81,0.00013808,3]
[330675663,1719702651211,-500.0,0.00013808,3]
[330675664,1719702651220,-500.0,0.00013808,3]
[330675665,1719702651228,-500.0,0.00013808,3]
[330675666,1719702651237,-500.0,0.00013808,3]
[330675667,1719702651246,-2556.45,0.00013808,3]
[330675668,1719702651255,-500.0,0.00013808,3]
[330675669,1719702651266,-1348.86,0.00013808,3]
[330675670,1719702651279,-500.0,0.00013808,3]
[330675671,1719702651288,-500.0,0.00013808,3]
[330675672,1719702651297,-507.8131869,0.00013808,3]
[330675673,1719702651307,-1439.96,0.00013808,3]
[330675674,1719702651316,-500.0,0.00013808,3]
[330675675,1719702651325,-500.0,0.00013808,3]
[330675676,1719702651335,-500.0,0.00013808,3]
[330675677,1719702651346,-500.0,0.00013808,3]
[330675678,1719702651356,-500.0,0.00013808,3]
[330675679,1719702651367,-940.88,0.00013808,3]
[330675680,1719702651376,-992.02,0.00013808,3]
[330675681,1719702651385,-500.0,0.00013808,3]
[330675682,1719702651394,-694.34,0.00013808,3]
[330675683,1719702651403,-500.0,0.00013808,3]
[330675684,1719702651412,-1565.07,0.00013808,3]
[330675685,1719702651421,-500.0,0.00013808,3]
[330675686,1719702651431,-505.37,0.00013808,3]
[330675687,1719702651440,-500.0,0.00013808,3]
[330675688,1719702651450,-632.69,0.00013808,3]
[330675689,1719702651459,-1198.77,0.00013808,3]
[330675690,1719702651468,-500.78,0.00013808,3]
[330675691,1719702651477,-500.0,0.00013808,3]
[330675692,1719702651487,-569.94,0.00013808,3]
[330675693,1719702651496,-500.0,0.00013808,3]
[330675694,1719702651505,-794.21,0.00013808,3]
[330675695,1719702651514,-500.0,0.00013808,3]
[330675696,1719702651523,-500.0,0.00013808,3]
[330675697,1719702651533,-515.57,0.00013808,3]
[330675698,1719702651542,-500.0,0.00013808,3]
[330675699,1719702651551,-500.0,0.00013808,3]
[330675700,1719702651561,-422.17,0.00013808,3]
[330675701,1719702651570,-500.0,0.00013808,3]
[330675702,1719702651579,-500.0,0.00013808,3]
[330675703,1719702651588,-500.0,0.00013808,3]
[330675704,1719702651598,-500.0,0.00013808,3]
[330675705,1719702651608,-1821.03,0.00013808,3]
[330675706,1719702651618,-1696.53,0.00013808,3]
[330675707,1719702651627,-526.17,0.00013808,3]
[330675708,1719702651635,-1265.27,0.00013808,3]
[330675709,1719702651644,-1142.96,0.00013808,3]
[330675710,1719702651653,-531.4,0.00013808,3]
[330675711,1719702651662,-500.0,0.00013808,3]
[330675712,1719702651674,-783.63,0.00013808,3]
[330675713,1719702651685,-654.77,0.00013808,3]
[330675714,1719702651694,-1013.45,0.00013808,3]
[330675715,1719702651706,-522.82,0.00013808,3]
[330675716,1719702651715,-1239.86,0.00013808,3]
[330675717,1719702651724,-712.74,0.00013808,3]
[330675718,1719702651734,-500.0,0.00013808,3]
[330675719,1719702651743,-500.0,0.00013808,3]
[330675720,1719702651752,-894.57,0.00013808,3]
[330675721,1719702651761,-500.0,0.00013808,3]
[330675722,1719702651770,-764.61,0.00013808,3]
[330675723,1719702651780,-1617.24,0.00013808,3]
[330675724,1719702651789,-500.0,0.00013808,3]
[330675725,1719702651798,-500.0,0.00013808,3]
[330675726,1719702651807,-512.11,0.00013808,3]
[330675727,1719702651817,-632.13,0.00013808,3]
[330675728,1719702651826,-851.86,0.00013808,3]
[330675729,1719702651835,-513.68,0.00013808,3]
[330675730,1719702651844,-500.0,0.00013808,3]
[330675731,1719702651853,-500.0,0.00013808,3]
[330675732,1719702651863,-500.0,0.00013808,3]
[330675733,1719702651872,-500.0,0.00013808,3]
[330675734,1719702651881,-588.89,0.00013808,3]
[330675735,1719702651890,-500.0,0.00013808,3]
[330675736,1719702651900,-1037.15,0.00013808,3]
[330675737,1719702651910,-2739.33,0.00013808,3]
[330675738,1719702651921,-1578.34,0.00013808,3]
[330675739,1719702651931,-500.0,0.00013808,3]
[330675740,1719702651940,-500.0,0.00013808,3]
[330675741,1719702651949,-545.19,0.00013808,3]
[330675742,1719702651958,-629.94,0.00013808,3]
[330675743,1719702651967,-500.0,0.00013808,3]
[330675744,1719702651976,-1169.34,0.00013808,3]
[330675745,1719702651985,-500.0,0.00013808,3]
[330675746,1719702651995,-643.99,0.00013808,3]
[330675747,1719702652003,-642.91,0.00013808,3]
[330675748,1719702652013,-500.0,0.00013808,3]
[330675749,1719702652023,-500.0,0.00013808,3]
[330675750,1719702652031,-898.77,0.00013808,3]
[330675751,1719702652041,-500.0,0.00013808,3]
[330675752,1719702652050,-573.27,0.00013808,3]
[330675753,1719702652058,-1367.19,0.00013808,3]
[330675754,1719702652067,-607.5,0.00013808,3]
[330675755,1719702652077,-1636.16,0.00013808,3]
[330675756,1719702652086,-1687.5,0.00013808,3]
[330675757,1719702652096,-500.0,0.00013808,3]
[330675758,1719702652105,-567.14,0.00013808,3]
[330675759,1719702652114,-500.0,0.00013808,3]
[330675760,1719702652123,-500.0,0.00013808,3]
[330675761,1719702652132,-803.35,0.00013808,3]
[330675762,1719702652141,-985.5,0.00013808,3]
[330675763,1719702652150,-500.0,0.00013808,3]
[330675764,1719702652159,-550.76,0.00013808,3]
[330675765,1719702652170,-500.0,0.00013808,3]
[330675766,1719702652179,-500.0,0.00013808,3]
[330675767,1719702652188,-500.0,0.00013808,3]
[330675768,1719702652197,-500.0,0.00013808,3]
[330675769,1719702652206,-792.58,0.00013808,3]
[330675770,1719702652215,-500.0,0.00013808,3]
[330675771,1719702652224,-5383.18,0.00013808,3]
[330675772,1719702652233,-500.0,0.00013808,3]
[330675773,1719702652242,-914.33,0.00013808,3]
[330675774,1719702652251,-500.0,0.00013808,3]
[330675775,1719702652261,-3711.41,0.00013808,3]
[330675776,1719702652275,-4462.46,0.00013808,3]
[330675777,1719702652285,-500.0,0.00013808,3]
[330675778,1719702652294,-500.0,0.00013808,3]
[330675779,1719702652303,-976.92,0.00013808,3]
[330675780,1719702652314,-894.75,0.00013808,3]
[330675781,1719702652323,-628.33,0.00013808,3]
[330675782,1719702652332,-500.0,0.00013808,3]
[330675783,1719702652343,-500.0,0.00013808,3]
[330675784,1719702652353,-500.0,0.00013808,3]
[330675785,1719702652361,-2797.8,0.00013808,3]
[330675786,1719702652371,-500.0,0.00013808,3]
[330675787,1719702652379,-500.0,0.00013808,3]
[330675788,1719702652388,-11044.27,0.00013808,3]
[330675789,1719702652397,-500.0,0.00013808,3]
[330675790,1719702652406,-3000.57,0.00013808,3]
[330675791,1719702652415,-727.89,0.00013808,3]
[330675792,1719702652425,-1137.92,0.00013808,3]
[330675793,1719702652435,-629.05,0.00013808,3]
[330675794,1719702652444,-931.34,0.00013808,3]
[330675795,1719702652453,-500.0,0.00013808,3]
[330675796,1719702652462,-500.0,0.00013808,3]
[330675797,1719702652472,-528.89,0.00013808,3]
[330675798,1719702652481,-503.44,0.00013808,3]
[330675799,1719702652491,-500.0,0.00013808,3]
[330675800,1719702652500,-500.0,0.00013808,3]
[330675801,1719702652509,-938.06,0.00013808,3]
[330675802,1719702652518,-993.81,0.00013808,3]
[330675803,1719702652528,-883.93,0.00013808,3]
[330675804,1719702652537,-1409.42,0.00013808,3]
[330675805,1719702652546,-2227.76,0.00013808,3]
[330675806,1719702652555,-4873.75,0.00013808,3]
[330675807,1719702652564,-881.52,0.00013808,3]
[330675808,1719702652574,-500.0,0.00013808,3]
[330675809,1719702652583,-731.57,0.00013808,3]
[330675810,1719702652591,-500.0,0.00013808,3]
[330675811,1719702652600,-500.0,0.00013808,3]
[330675812,1719702652610,-921.45,0.00013808,3]
[330675813,1719702652618,-2929.33,0.00013808,3]
[330675814,1719702652627,-1400.96,0.00013808,3]
[330675815,1719702652636,-500.0,0.00013808,3]
[330675816,1719702652645,-3543.01,0.00013808,3]
[330675817,1719702652655,-500.0,0.00013808,3]
[330675818,1719702652664,-500.0,0.00013808,3]
[330675819,1719702652674,-1798.12,0.00013808,3]
[330675820,1719702652683,-500.0,0.00013808,3]
[330675821,1719702652692,-500.0,0.00013808,3]
[330675822,1719702652702,-2944.7,0.00013808,3]
[330675823,1719702652711,-500.0,0.00013808,3]
[330675824,1719702652720,-513.93,0.00013808,3]
[330675825,1719702652729,-933.64,0.00013808,3]
[330675826,1719702652738,-1388.03,0.00013808,3]
[330675827,1719702652748,-500.0,0.00013808,3]
[330675828,1719702652757,-500.0,0.00013808,3]
[330675829,1719702652766,-845.68,0.00013808,3]
[330675830,1719702652775,-500.0,0.00013808,3]
[330675831,1719702652785,-500.0,0.00013808,3]
[330675832,1719702652794,-566.29,0.00013808,3]
[330675833,1719702652803,-500.0,0.00013808,3]
[330675834,1719702652813,-500.0,0.00013808,3]
[330675835,1719702652822,-500.0,0.00013808,3]
[330675836,1719702652831,-500.0,0.00013808,3]
[330675837,1719702652840,-1342.18,0.00013808,3]
[330675838,1719702652850,-1558.67,0.00013808,3]
[330675839,1719702652859,-515.73,0.00013808,3]
[330675840,1719702652869,-500.0,0.00013808,3]
[330675841,1719702652878,-500.0,0.00013808,3]
[330675842,1719702652888,-739.84,0.00013808,3]
[330675843,1719702652899,-717.36,0.00013808,3]
[330675844,1719702652908,-1599.0,0.00013808,3]
[330675845,1719702652918,-3421.73,0.00013808,3]
[330675846,1719702652929,-1049.1,0.00013808,3]
[330675847,1719702652939,-618.65,0.00013808,3]
[330675848,1719702652949,-500.0,0.00013808,3]
[330675849,1719702652959,-2751.47,0.00013808,3]
[330675850,1719702652968,-872.28,0.00013808,3]
[330675851,1719702652977,-973.09,0.00013808,3]
[330675852,1719702652987,-2650.04,0.00013808,3]
[330675853,1719702652997,-500.0,0.00013808,3]
[330675854,1719702653006,-500.0,0.00013808,3]
[330675855,1719702653016,-500.0,0.00013808,3]
[330675856,1719702653026,-1539.85,0.00013808,3]
[330675857,1719702653035,-3357.73,0.00013808,3]
[330675858,1719702653044,-500.0,0.00013808,3]
[330675859,1719702653054,-500.0,0.00013808,3]
[330675860,1719702653064,-720.72,0.00013808,3]
[330675861,1719702653073,-500.0,0.00013808,3]
[330675862,1719702653082,-995.58,0.00013808,3]
[330675863,1719702653091,-500.0,0.00013808,3]
[330675864,1719702653101,-1709.1,0.00013808,3]
[330675865,1719702653110,-1444.41,0.00013808,3]
[330675866,1719702653119,-500.0,0.00013808,3]
[330675867,1719702653129,-500.0,0.00013808,3]
[330675868,1719702653138,-2063.85,0.00013808,3]
[330675869,1719702653148,-758.05,0.00013808,3]
[330675870,1719702653157,-2102.61,0.00013808,3]
[330675871,1719702653166,-648.33,0.00013808,3]
[330675872,1719702653180,-652.45,0.00013808,3]
[330675873,1719702653190,-500.0,0.00013808,3]
[330675874,1719702653200,-1410.17,0.00013808,3]
[330675875,1719702653210,-500.0,0.00013808,3]
[330675876,1719702653220,-618.25,0.00013808,3]
[330675877,1719702653229,-500.0,0.00013808,3]
[330675878,1719702653239,-500.0,0.00013808,3]
[330675879,1719702653248,-500.0,0.00013808,3]
[330675880,1719702653257,-500.0,0.00013808,3]
[330675881,1719702653270,-500.0,0.00013808,3]
[330675882,1719702653279,-500.0,0.00013808,3]
[330675883,1719702653288,-500.0,0.00013808,3]
[330675884,1719702653297,-500.0,0.00013808,3]
[330675885,1719702653307,-1299.3,0.00013808,3]
[330675886,1719702653316,-500.0,0.00013808,3]
[330675887,1719702653325,-500.0,0.00013808,3]
[330675888,1719702653335,-500.0,0.00013808,3]
[330675889,1719702653346,-1969.68,0.00013808,3]
[330675890,1719702653355,-1260.26,0.00013808,3]
[330675891,1719702653364,-815.68,0.00013808,3]
[330675892,1719702653373,-500.0,0.00013808,3]
[330675893,1719702653383,-500.0,0.00013808,3]
[330675894,1719702653392,-1376.45,0.00013808,3]
[330675895,1719702653401,-511.56,0.00013808,3]
[330675896,1719702653411,-690.88,0.00013808,3]
[330675897,1719702653422,-617.42,0.00013808,3]
[330675898,1719702653430,-864.96,0.00013808,3]
[330675899,1719702653440,-1395.88,0.00013808,3]
[330675900,1719702653449,-500.0,0.00013808,3]
[330675901,1719702653458,-1108.66,0.00013808,3]
[330675902,1719702653467,-500.0,0.00013808,2]
[330675903,1719702653478,-500.0,0.00013808,3]
[330675904,1719702653487,-2327.09,0.00013808,3]
[330675905,1719702653497,-500.0,0.00013808,3]
[330675906,1719702653506,-500.0,0.00013808,3]
[330675907,1719702653515,-1442.07,0.00013808,3]
[330675908,1719702653524,-500.0,0.00013808,3]
[330675909,1719702653534,-500.0,0.00013808,3]
[330675910,1719702653543,-1992.79,0.00013808,3]
[330675911,1719702653552,-528.22,0.00013808,3]
[330675912,1719702653561,-500.0,0.00013808,3]
[330675913,1719702653571,-500.0,0.00013808,3]
[330675914,1719702653580,-500.0,0.00013808,3]
[330675915,1719702653589,-1928.33,0.00013808,3]
[330675916,1719702653598,-642.04,0.00013808,3]
[330675917,1719702653608,-750.06,0.00013808,3]
[330675918,1719702653617,-894.32,0.00013808,3]
[330675919,1719702653626,-500.0,0.00013808,3]
[330675920,1719702653635,-1201.17,0.00013808,3]
[330675921,1719702653645,-500.0,0.00013808,3]
[330675923,1719702653654,-520.71,0.00013808,3]
[330675924,1719702653663,-766.22,0.00013808,3]
[330675925,1719702653674,-500.0,0.00013808,3]
[330675926,1719702653683,-500.0,0.00013808,3]
[330675927,1719702653692,-938.02,0.00013808,3]
[330675928,1719702653701,-614.56,0.00013808,3]
[330675929,1719702653710,-1067.84,0.00013808,3]
[330675930,1719702653719,-500.0,0.00013808,3]
[330675931,1719702653728,-500.0,0.00013808,3]
[330675932,1719702653737,-6339.28,0.00013808,3]
[330675933,1719702653746,-500.0,0.00013808,3]
[330675934,1719702653755,-1150.84,0.00013808,3]
[330675935,1719702653764,-500.0,0.00013808,3]
[330675936,1719702653773,-1410.94,0.00013808,3]
[330675937,1719702653782,-586.37,0.00013808,3]
[330675938,1719702653791,-1026.38,0.00013808,3]
[330675939,1719702653801,-500.0,0.00013808,3]
[330675940,1719702653810,-2574.51,0.00013808,3]
[330675941,1719702653819,-744.97,0.00013808,3]
[330675942,1719702653828,-500.0,0.00013808,3]
[330675943,1719702653838,-3451.03,0.00013808,3]
[330675944,1719702653847,-500.0,0.00013808,3]
[330675945,1719702653856,-500.0,0.00013808,3]
[330675946,1719702653865,-3081.42,0.00013808,3]
[330675947,1719702653875,-925.18,0.00013808,3]
[330675948,1719702653884,-977.83,0.00013808,3]
[330675949,1719702653894,-647.76,0.00013808,3]
[330675950,1719702653904,-500.0,0.00013808,3]
[330675951,1719702653913,-500.0,0.00013808,3]
[330675952,1719702653924,-500.0,0.00013808,3]
[330675953,1719702653933,-1215.62,0.00013808,3]
[330675954,1719702653942,-2397.63,0.00013808,3]
[330675955,1719702653951,-684.97,0.00013808,3]
[330675956,1719702653960,-602.88,0.00013808,3]
[330675957,1719702653969,-2805.11,0.00013808,3]
[330675958,1719702653979,-1288.95,0.00013808,3]
[330675959,1719702653987,-738.08,0.00013808,3]
[330675960,1719702653997,-587.96,0.00013808,3]
[330675961,1719702654006,-3701.32,0.00013808,3]
[330675962,1719702654015,-881.75,0.00013808,3]
[330675963,1719702654025,-500.0,0.00013808,3]
[330675964,1719702654034,-500.0,0.00013808,3]
[330675965,1719702654044,-500.0,0.00013808,3]
[330675966,1719702654052,-3964.61,0.00013808,3]
[330675967,1719702654062,-1900.55,0.00013808,3]
[330675968,1719702654071,-500.0,0.00013808,3]
[330675969,1719702654081,-170.02268062,0.00013817,2]
[330675970,1719702654090,-583.28132099,0.00013823,2]
[330675971,1719702654099,-361.11445229,0.00013823,2]
[330675972,1719702654108,-537.26,0.00013885,2]
[330675973,1719702654118,-812.0,0.00013885,2]
[330675974,1719702654127,-763.924,0.00013885,2]
[330675975,1719702654136,-166.0,0.00013885,2]
[330675976,1719702654146,-448.0,0.00013885,2]
[330675977,1719702654157,-2414.0,0.00013885,2]
[330675978,1719702654166,-1304.0,0.00013885,2]
[330675979,1719702654177,-150.0,0.00013885,2]
[330675980,1719702654186,-2132.057,0.00013885,2]
[330675981,1719702654194,-548.0,0.00013885,2]
[330675982,1719702654204,-5172.0,0.00013885,2]
[330675983,1719702654213,-38202.0,0.00013885,2]
[330675984,1719702654222,-5805.0,0.00013885,2]
[330675985,1719702654231,-1198.0,0.00013885,2]
[330675986,1719702654242,-1069.0,0.00013885,2]
[330675987,1719702654251,-3900.0,0.000139,5]
[330675988,1719702654261,-150.0,0.00013915,2]
[330675989,1719702654276,-150.0,0.00013915,2]
[330675990,1719702654285,-259.18,0.00013915,2]
[330675991,1719702654294,-150.0,0.00013915,2]
[330675992,1719702654303,-150.0,0.00013915,2]
[330675993,1719702654314,-279.683,0.00013915,2]
[330675994,1719702654323,-358.0,0.00013915,2]
[330675995,1719702654333,-3048.64,0.00013917,3]
[330675996,1719702654344,-2565.71,0.00013917,3]
[330675997,1719702654354,-845.44,0.00013917,3]
[330675998,1719702654364,-773.25,0.00013917,3]
[330675999,1719702654374,-500.0,0.00013917,3]
[330676000,1719702654383,-1543.91,0.00013917,3]
[330676001,1719702654392,-1125.93,0.00013917,3]
[330676002,1719702654402,-555.51,0.00013917,3]
[330676003,1719702654411,-1110.13,0.00013917,3]
[330676004,1719702654423,-1576.86,0.00013917,3]
[330676005,1719702654557,-6884.75,0.00013917,3]
[330676006,1719702654568,-3716.98,0.00013917,3]
[330676007,1719702654578,-1864.91,0.00013917,3]
[330676008,1719702654588,-1667.59,0.00013917,3]
[330676009,1719702654598,-500.0,0.00013917,3]
[330676010,1719702654608,-2020.68,0.00013917,3]
[330676011,1719702654617,-500.0,0.00013917,3]
[330676012,1719702654627,-500.0,0.00013917,3]
[330676013,1719702654637,-690.05,0.00013917,3]
[330676014,1719702654647,-500.0,0.00013917,3]
[330676015,1719702654656,-500.0,0.00013917,3]
[330676016,1719702654665,-500.0,0.00013917,3]
[330676017,1719702654679,-1559.06,0.00013917,3]
[330676018,1719702654688,-500.0,0.00013917,3]
[330676019,1719702654699,-500.0,0.00013917,3]
[330676020,1719702654710,-500.0,0.00013917,3]
[330676021,1719702654719,-500.0,0.00013917,3]
[330676022,1719702654729,-500.0,0.00013917,3]
[330676023,1719702654739,-558.6,0.00013917,3]
[330676024,1719702654749,-500.0,0.00013917,3]
[330676025,1719702654758,-500.0,0.00013917,3]
[330676026,1719702654768,-1096.51,0.00013917,3]
[330676027,1719702654778,-1713.29,0.00013917,3]
[330676028,1719702654787,-500.0,0.00013917,3]
[330676029,1719702654797,-513.76,0.00013917,3]
[330676030,1719702654807,-500.0,0.00013917,3]
[330676031,1719702654817,-642.04104595,0.00013917,3]
[330676032,1719702654827,-500.0,0.00013917,3]
[330676033,1719702654838,-513.5,0.00013917,3]
[330676034,1719702654847,-500.0,0.00013917,3]